[Event "Titled Tuesday Blitz February 01 B 2022"]
[White "Jobava, Baadur"]
[Black "Holt, Conrad"]
[WhiteFideId "13601520"]
[BlackFideId "2034387"]
[WhiteElo "2617"]
[BlackElo "2586"]
[Result "1-0"]
[Round "11"]
[TimeControl "180+1"]
[Date "2022.02.01"]
[WhiteClock "0:01:10"]
[BlackClock "0:00:08"]

1. b3 {[%clk 0:03:00]}  d5 {[%clk 0:02:57]} 2. Bb2 {[%clk 0:03:01]}  Bg4 {[%clk 0:02:57]} 3. f3 {[%clk 0:02:59]}  Bd7 {[%clk 0:02:56]} 4. e3 {[%clk 0:03:00]}  Nc6 {[%clk 0:02:54]} 5. d4 {[%clk 0:02:59]}  e5 {[%clk 0:02:48]} 6. dxe5 {[%clk 0:02:59]}  Qe7 {[%clk 0:02:48]} 7. Nc3 {[%clk 0:02:57]}  O-O-O {[%clk 0:02:38]} 8. Nxd5 {[%clk 0:02:51]}  Qc5 {[%clk 0:02:30]} 9. e4 {[%clk 0:02:34]}  Nge7 {[%clk 0:02:18]} 10. Qd2 {[%clk 0:02:24]}  Nxd5 {[%clk 0:02:10]} 11. exd5 {[%clk 0:02:22]}  Nb4 {[%clk 0:01:57]} 12. c4 {[%clk 0:01:56]}  Bf5 {[%clk 0:01:54]} 13. Rd1 {[%clk 0:01:34]}  f6 {[%clk 0:01:18]} 14. f4 {[%clk 0:01:32]}  Nc2+ {[%clk 0:00:55]} 15. Ke2 {[%clk 0:01:32]}  fxe5 {[%clk 0:00:44]} 16. fxe5 {[%clk 0:01:32]}  Qb6 {[%clk 0:00:42]} 17. Nf3 {[%clk 0:01:28]}  Bb4 {[%clk 0:00:38]} 18. Bc3 {[%clk 0:01:28]}  Rhe8 {[%clk 0:00:33]} 19. Bxb4 {[%clk 0:01:25]}  Nxb4 {[%clk 0:00:33]} 20. Qe3 {[%clk 0:01:20]}  Qa5 {[%clk 0:00:27]} 21. Kf2 {[%clk 0:01:16]}  Nc2 {[%clk 0:00:23]} 22. Qg5 {[%clk 0:01:13]}  Qb6+ {[%clk 0:00:21]} 23. Kg3 {[%clk 0:01:13]}  Be4 {[%clk 0:00:08]} 24. Qg4+ {[%clk 0:01:11]}  Kb8 {[%clk 0:00:08]} 25. Qxe4 {[%clk 0:01:10]} 1-0


[Site "https://www.chess.com"]

[Event "Titled Tuesday Blitz February 01 B 2022"]
[White "Kosteniuk, Alexandra"]
[Black "Barp, Alberto"]
[WhiteFideId "4128125"]
[BlackFideId "872555"]
[WhiteElo "2469"]
[BlackElo "2229"]
[Result "0-1"]
[Round "11"]
[TimeControl "180+1"]
[Date "2022.02.01"]
[WhiteClock "0:00:09"]
[BlackClock "0:00:08"]

1. e4 {[%clk 0:03:00]}  e5 {[%clk 0:02:58]} 2. f4 {[%clk 0:02:59]}  d5 {[%clk 0:02:56]} 3. exd5 {[%clk 0:02:58]}  exf4 {[%clk 0:02:54]} 4. Nf3 {[%clk 0:02:58]}  Nf6 {[%clk 0:02:53]} 5. Bb5+ {[%clk 0:02:55]}  c6 {[%clk 0:02:53]} 6. dxc6 {[%clk 0:02:54]}  Nxc6 {[%clk 0:02:54]} 7. d4 {[%clk 0:02:52]}  Bd6 {[%clk 0:02:53]} 8. Qe2+ {[%clk 0:02:49]}  Be6 {[%clk 0:02:46]} 9. c4 {[%clk 0:02:42]}  O-O {[%clk 0:02:39]} 10. Bxc6 {[%clk 0:02:42]}  bxc6 {[%clk 0:02:38]} 11. O-O {[%clk 0:02:42]}  Re8 {[%clk 0:02:29]} 12. Nc3 {[%clk 0:02:41]}  Bf5 {[%clk 0:02:24]} 13. Qd1 {[%clk 0:02:41]}  Ng4 {[%clk 0:02:17]} 14. Re1 {[%clk 0:02:35]}  Qf6 {[%clk 0:02:09]} 15. Bd2 {[%clk 0:02:20]}  Ne3 {[%clk 0:01:55]} 16. Qa4 {[%clk 0:02:15]}  Rac8 {[%clk 0:01:30]} 17. c5 {[%clk 0:02:07]}  Bb8 {[%clk 0:01:27]} 18. d5 {[%clk 0:02:07]}  cxd5 {[%clk 0:01:16]} 19. Nxd5 {[%clk 0:02:03]}  Qxb2 {[%clk 0:00:59]} 20. Nxf4 {[%clk 0:01:20]}  Bc2 {[%clk 0:00:49]} 21. Qd4 {[%clk 0:01:10]}  Qxd4 {[%clk 0:00:44]} 22. Nxd4 {[%clk 0:01:10]}  Bxf4 {[%clk 0:00:41]} 23. g3 {[%clk 0:00:58]}  Bh6 {[%clk 0:00:33]} 24. Nb5 {[%clk 0:00:52]}  Rxc5 {[%clk 0:00:27]} 25. Nxa7 {[%clk 0:00:43]}  Bf5 {[%clk 0:00:20]} 26. a4 {[%clk 0:00:43]}  g6 {[%clk 0:00:17]} 27. Nb5 {[%clk 0:00:42]}  Rc2 {[%clk 0:00:16]} 28. Re2 {[%clk 0:00:32]}  Bd3 {[%clk 0:00:14]} 29. Rf2 {[%clk 0:00:30]}  Ng4 {[%clk 0:00:14]} 30. Bxh6 {[%clk 0:00:23]}  Nxf2 {[%clk 0:00:13]} 31. Kg2 {[%clk 0:00:19]}  Be4+ {[%clk 0:00:13]} 32. Kf1 {[%clk 0:00:19]}  Ng4 {[%clk 0:00:12]} 33. Nd6 {[%clk 0:00:17]}  Nxh2+ {[%clk 0:00:10]} 34. Ke1 {[%clk 0:00:17]}  Re6 {[%clk 0:00:07]} 35. Nxe4 {[%clk 0:00:15]}  Rxe4+ {[%clk 0:00:08]} 36. Kd1 {[%clk 0:00:16]}  Rg2 {[%clk 0:00:08]} 37. Bc1 {[%clk 0:00:15]}  Nf3 {[%clk 0:00:08]} 38. a5 {[%clk 0:00:09]}  Re1# {[%clk 0:00:08]} 0-1


[Site "https://www.chess.com"]

[Event "Titled Tuesday Blitz February 01 B 2022"]
[White "Lenderman, Aleksandr"]
[Black "Mladenovic, Stefan"]
[WhiteFideId "2021285"]
[BlackFideId "942227"]
[WhiteElo "2651"]
[BlackElo "2355"]
[Result "1-0"]
[Round "11"]
[TimeControl "180+1"]
[Date "2022.02.01"]
[WhiteClock "0:01:24"]
[BlackClock "0:00:02"]

1. b3 {[%clk 0:03:00]}  e5 {[%clk 0:02:58]} 2. Bb2 {[%clk 0:03:00]}  Nc6 {[%clk 0:02:59]} 3. e3 {[%clk 0:02:59]}  d6 {[%clk 0:02:59]} 4. Nf3 {[%clk 0:02:57]}  g6 {[%clk 0:02:58]} 5. d4 {[%clk 0:02:57]}  Bg7 {[%clk 0:02:59]} 6. dxe5 {[%clk 0:02:53]}  Nh6 {[%clk 0:02:58]} 7. Nc3 {[%clk 0:02:50]}  dxe5 {[%clk 0:02:57]} 8. Qxd8+ {[%clk 0:02:49]}  Nxd8 {[%clk 0:02:57]} 9. Nd5 {[%clk 0:02:46]}  Ne6 {[%clk 0:02:50]} 10. Bxe5 {[%clk 0:02:45]}  O-O {[%clk 0:02:44]} 11. Be2 {[%clk 0:02:29]}  c6 {[%clk 0:02:41]} 12. Ne7+ {[%clk 0:02:28]}  Kh8 {[%clk 0:02:41]} 13. Bxg7+ {[%clk 0:02:27]}  Kxg7 {[%clk 0:02:42]} 14. Nxc8 {[%clk 0:02:25]}  Raxc8 {[%clk 0:02:43]} 15. O-O {[%clk 0:02:25]}  Nc5 {[%clk 0:02:38]} 16. Rfd1 {[%clk 0:02:24]}  Rc7 {[%clk 0:02:36]} 17. Bf1 {[%clk 0:02:17]}  Nf5 {[%clk 0:02:35]} 18. Nd4 {[%clk 0:02:17]}  Ne7 {[%clk 0:02:32]} 19. f3 {[%clk 0:02:15]}  Nd5 {[%clk 0:02:29]} 20. Kf2 {[%clk 0:02:14]}  Re7 {[%clk 0:02:28]} 21. e4 {[%clk 0:02:13]}  Nc3 {[%clk 0:02:27]} 22. Re1 {[%clk 0:02:12]}  Rd8 {[%clk 0:02:19]} 23. Ne2 {[%clk 0:02:12]}  Rd2 {[%clk 0:02:13]} 24. Rac1 {[%clk 0:02:11]}  Nxa2 {[%clk 0:02:11]} 25. Ke3 {[%clk 0:02:08]}  Nxc1 {[%clk 0:02:06]} 26. Kxd2 {[%clk 0:02:08]}  Nxe2 {[%clk 0:02:06]} 27. Bxe2 {[%clk 0:02:08]}  Rd7+ {[%clk 0:02:06]} 28. Kc3 {[%clk 0:02:08]}  Ne6 {[%clk 0:02:05]} 29. Bc4 {[%clk 0:02:07]}  Kf6 {[%clk 0:01:48]} 30. g3 {[%clk 0:02:04]}  Nd4 {[%clk 0:01:30]} 31. f4 {[%clk 0:02:00]}  b5 {[%clk 0:01:28]} 32. Bd3 {[%clk 0:01:56]}  c5 {[%clk 0:01:27]} 33. Ra1 {[%clk 0:01:55]}  Ke7 {[%clk 0:01:11]} 34. Ra5 {[%clk 0:01:49]}  Rb7 {[%clk 0:01:07]} 35. Ra6 {[%clk 0:01:48]}  Nf3 {[%clk 0:01:05]} 36. h3 {[%clk 0:01:46]}  c4 {[%clk 0:00:40]} 37. bxc4 {[%clk 0:01:44]}  b4+ {[%clk 0:00:41]} 38. Kb2 {[%clk 0:01:42]}  Nd2 {[%clk 0:00:35]} 39. c5 {[%clk 0:01:41]}  Rc7 {[%clk 0:00:35]} 40. e5 {[%clk 0:01:40]}  h5 {[%clk 0:00:29]} 41. g4 {[%clk 0:01:37]}  hxg4 {[%clk 0:00:27]} 42. hxg4 {[%clk 0:01:38]}  Nf3 {[%clk 0:00:24]} 43. Be4 {[%clk 0:01:33]}  Nd4 {[%clk 0:00:22]} 44. Bd5 {[%clk 0:01:32]}  Kf8 {[%clk 0:00:17]} 45. c6 {[%clk 0:01:30]}  Ne2 {[%clk 0:00:13]} 46. f5 {[%clk 0:01:30]}  gxf5 {[%clk 0:00:14]} 47. gxf5 {[%clk 0:01:30]}  Nd4 {[%clk 0:00:10]} 48. f6 {[%clk 0:01:30]}  Kg8 {[%clk 0:00:06]} 49. c3 {[%clk 0:01:30]}  bxc3+ {[%clk 0:00:06]} 50. Kxc3 {[%clk 0:01:30]}  Nf5 {[%clk 0:00:06]} 51. Kd3 {[%clk 0:01:29]}  Kh7 {[%clk 0:00:06]} 52. Be4 {[%clk 0:01:25]}  Kg6 {[%clk 0:00:06]} 53. Bxf5+ {[%clk 0:01:24]}  Kxf5 {[%clk 0:00:07]} 54. Kd4 {[%clk 0:01:24]}  Rc8 {[%clk 0:00:04]} 55. Rxa7 {[%clk 0:01:24]}  Rc7 {[%clk 0:00:02]} 1-0


[Site "https://www.chess.com"]

[Event "Titled Tuesday Blitz February 01 B 2022"]
[White "LikeWater"]
[Black "Ramirez, Alejandro"]
[BlackFideId "6500617"]
[WhiteElo "2620"]
[BlackElo "2694"]
[Result "0-1"]
[Round "11"]
[TimeControl "180+1"]
[Date "2022.02.01"]
[WhiteClock "0:00:03"]
[BlackClock "0:00:55"]

1. g3 {[%clk 0:03:00]}  d5 {[%clk 0:02:59]} 2. Bg2 {[%clk 0:03:00]}  c6 {[%clk 0:02:52]} 3. f4 {[%clk 0:03:00]}  Nf6 {[%clk 0:02:52]} 4. d3 {[%clk 0:02:59]}  h5 {[%clk 0:02:52]} 5. Nf3 {[%clk 0:02:57]}  Bf5 {[%clk 0:02:50]} 6. Nc3 {[%clk 0:02:44]}  e6 {[%clk 0:02:50]} 7. O-O {[%clk 0:02:42]}  Bc5+ {[%clk 0:02:49]} 8. e3 {[%clk 0:02:40]}  Nbd7 {[%clk 0:02:45]} 9. Qe2 {[%clk 0:02:39]}  a5 {[%clk 0:02:43]} 10. Kh1 {[%clk 0:02:36]}  Ba7 {[%clk 0:02:43]} 11. e4 {[%clk 0:02:36]}  Bg4 {[%clk 0:02:35]} 12. e5 {[%clk 0:02:05]}  Ng8 {[%clk 0:02:34]} 13. Qe1 {[%clk 0:01:45]}  Ne7 {[%clk 0:02:29]} 14. Nh4 {[%clk 0:01:34]}  Nf5 {[%clk 0:02:25]} 15. Nxf5 {[%clk 0:01:34]}  Bxf5 {[%clk 0:02:26]} 16. Bf3 {[%clk 0:01:27]}  f6 {[%clk 0:02:21]} 17. Qe2 {[%clk 0:01:21]}  g6 {[%clk 0:02:21]} 18. Nd1 {[%clk 0:01:16]}  fxe5 {[%clk 0:02:14]} 19. fxe5 {[%clk 0:01:17]}  Qc7 {[%clk 0:02:15]} 20. Bg5 {[%clk 0:00:57]}  Qxe5 {[%clk 0:02:05]} 21. Qxe5 {[%clk 0:00:57]}  Nxe5 {[%clk 0:02:05]} 22. Bf6 {[%clk 0:00:57]}  Nxf3 {[%clk 0:02:00]} 23. Bxh8 {[%clk 0:00:54]}  Nd2 {[%clk 0:01:30]} 24. Rxf5 {[%clk 0:00:48]}  gxf5 {[%clk 0:01:05]} 25. Kg2 {[%clk 0:00:49]}  f4 {[%clk 0:01:05]} 26. gxf4 {[%clk 0:00:13]}  Kf7 {[%clk 0:01:05]} 27. Be5 {[%clk 0:00:09]}  Rg8+ {[%clk 0:01:01]} 28. Kh3 {[%clk 0:00:09]}  Nf3 {[%clk 0:01:02]} 29. d4 {[%clk 0:00:09]}  Bxd4 {[%clk 0:01:01]} 30. Bxd4 {[%clk 0:00:09]}  Nxd4 {[%clk 0:01:02]} 31. Ne3 {[%clk 0:00:09]}  Kf6 {[%clk 0:00:58]} 32. c3 {[%clk 0:00:07]}  Nf5 {[%clk 0:00:56]} 33. Re1 {[%clk 0:00:07]}  Nxe3 {[%clk 0:00:55]} 34. Rxe3 {[%clk 0:00:08]}  Rg4 {[%clk 0:00:56]} 35. Re5 {[%clk 0:00:02]}  Rxf4 {[%clk 0:00:56]} 36. Rxh5 {[%clk 0:00:02]}  Rf2 {[%clk 0:00:56]} 37. b3 {[%clk 0:00:02]}  Rxa2 {[%clk 0:00:56]} 38. Rh7 {[%clk 0:00:02]}  b5 {[%clk 0:00:56]} 39. Rc7 {[%clk 0:00:03]}  Rb2 {[%clk 0:00:56]} 40. b4 {[%clk 0:00:03]}  Rb3 {[%clk 0:00:55]} 41. Rxc6 {[%clk 0:00:03]}  axb4 {[%clk 0:00:55]} 0-1


[Site "https://www.chess.com"]

[Event "Titled Tuesday Blitz February 01 B 2022"]
[White "Nazaretyan, Tigran"]
[Black "Vovk, Orest"]
[WhiteFideId "24162345"]
[BlackFideId "14113490"]
[WhiteElo "2192"]
[BlackElo "2203"]
[Result "1-0"]
[Round "11"]
[TimeControl "180+1"]
[Date "2022.02.01"]
[WhiteClock "0:01:03"]
[BlackClock "0:00:03"]

1. d4 {[%clk 0:03:00]}  e5 {[%clk 0:02:58]} 2. dxe5 {[%clk 0:03:00]}  Nc6 {[%clk 0:02:58]} 3. Nf3 {[%clk 0:03:00]}  Qe7 {[%clk 0:02:59]} 4. Bg5 {[%clk 0:02:59]}  Qb4+ {[%clk 0:02:59]} 5. Bd2 {[%clk 0:02:58]}  Qxb2 {[%clk 0:02:59]} 6. Nc3 {[%clk 0:02:59]}  Bb4 {[%clk 0:02:59]} 7. Rb1 {[%clk 0:02:59]}  Qxc3 {[%clk 0:02:59]} 8. Bxc3 {[%clk 0:02:58]}  Bxc3+ {[%clk 0:02:57]} 9. Nd2 {[%clk 0:02:57]}  Nxe5 {[%clk 0:02:58]} 10. Rb3 {[%clk 0:02:56]}  Ba5 {[%clk 0:02:57]} 11. Re3 {[%clk 0:02:54]}  d6 {[%clk 0:02:57]} 12. f4 {[%clk 0:02:54]}  Bb6 {[%clk 0:02:57]} 13. Re4 {[%clk 0:02:40]}  f5 {[%clk 0:02:54]} 14. Rb4 {[%clk 0:02:27]}  Ng4 {[%clk 0:02:37]} 15. Nc4 {[%clk 0:02:19]}  Bc5 {[%clk 0:02:08]} 16. Rb3 {[%clk 0:02:11]}  Nf2 {[%clk 0:01:57]} 17. Qa1 {[%clk 0:02:09]}  Nf6 {[%clk 0:01:53]} 18. Rg1 {[%clk 0:01:54]}  O-O {[%clk 0:01:49]} 19. e3 {[%clk 0:01:53]}  N2e4 {[%clk 0:01:45]} 20. Nd2 {[%clk 0:01:45]}  Nxd2 {[%clk 0:01:36]} 21. Kxd2 {[%clk 0:01:43]}  Ne4+ {[%clk 0:01:36]} 22. Kc1 {[%clk 0:01:43]}  Be6 {[%clk 0:01:32]} 23. Rd3 {[%clk 0:01:39]}  Bc4 {[%clk 0:01:25]} 24. Rd4 {[%clk 0:01:40]}  Bxf1 {[%clk 0:01:16]} 25. Rxf1 {[%clk 0:01:38]}  Bxd4 {[%clk 0:01:16]} 26. Qxd4 {[%clk 0:01:37]}  c5 {[%clk 0:01:14]} 27. Qd5+ {[%clk 0:01:37]}  Kh8 {[%clk 0:01:14]} 28. g4 {[%clk 0:01:37]}  b6 {[%clk 0:01:05]} 29. gxf5 {[%clk 0:01:36]}  Rae8 {[%clk 0:01:03]} 30. Rg1 {[%clk 0:01:35]}  Nc3 {[%clk 0:00:50]} 31. Qg2 {[%clk 0:01:29]}  Rf7 {[%clk 0:00:44]} 32. Kb2 {[%clk 0:01:24]}  Na4+ {[%clk 0:00:39]} 33. Kb3 {[%clk 0:01:18]}  b5 {[%clk 0:00:26]} 34. e4 {[%clk 0:01:16]}  a5 {[%clk 0:00:19]} 35. c4 {[%clk 0:01:15]}  Nb6 {[%clk 0:00:14]} 36. cxb5 {[%clk 0:01:14]}  d5 {[%clk 0:00:12]} 37. e5 {[%clk 0:01:13]}  d4 {[%clk 0:00:10]} 38. Qc6 {[%clk 0:01:11]}  c4+ {[%clk 0:00:09]} 39. Ka3 {[%clk 0:01:09]}  Rb8 {[%clk 0:00:10]} 40. e6 {[%clk 0:01:07]}  Rfb7 {[%clk 0:00:07]} 41. f6 {[%clk 0:01:06]}  gxf6 {[%clk 0:00:07]} 42. e7 {[%clk 0:01:06]}  Nd5 {[%clk 0:00:03]} 43. e8=Q+ {[%clk 0:01:03]} 1-0


[Site "https://www.chess.com"]

[Event "Titled Tuesday Blitz February 01 B 2022"]
[White "Papp, Levente"]
[Black "Rustemov, Alexander"]
[WhiteFideId "751243"]
[BlackFideId "4119002"]
[WhiteElo "2308"]
[BlackElo "2757"]
[Result "0-1"]
[Round "11"]
[TimeControl "180+1"]
[Date "2022.02.01"]
[WhiteClock "0:00:01"]
[BlackClock "0:00:13"]

1. c4 {[%clk 0:03:00]}  c6 {[%clk 0:02:56]} 2. d4 {[%clk 0:02:58]}  d5 {[%clk 0:02:55]} 3. Nf3 {[%clk 0:02:58]}  Nf6 {[%clk 0:02:55]} 4. Nc3 {[%clk 0:02:55]}  dxc4 {[%clk 0:02:51]} 5. a4 {[%clk 0:02:51]}  Bf5 {[%clk 0:02:50]} 6. Ne5 {[%clk 0:02:51]}  Nbd7 {[%clk 0:02:49]} 7. Nxc4 {[%clk 0:02:47]}  Nb6 {[%clk 0:02:49]} 8. Ne5 {[%clk 0:02:46]}  a5 {[%clk 0:02:49]} 9. f3 {[%clk 0:02:45]}  Nfd7 {[%clk 0:02:46]} 10. Nxd7 {[%clk 0:02:40]}  Nxd7 {[%clk 0:02:42]} 11. e4 {[%clk 0:02:39]}  Bg6 {[%clk 0:02:42]} 12. Be3 {[%clk 0:02:36]}  e5 {[%clk 0:02:34]} 13. dxe5 {[%clk 0:02:31]}  Bc5 {[%clk 0:01:56]} 14. Bxc5 {[%clk 0:02:20]}  Nxc5 {[%clk 0:01:55]} 15. Qxd8+ {[%clk 0:02:10]}  Rxd8 {[%clk 0:01:49]} 16. Bc4 {[%clk 0:02:10]}  Rd4 {[%clk 0:01:37]} 17. b3 {[%clk 0:02:00]}  Nd7 {[%clk 0:01:24]} 18. Ne2 {[%clk 0:01:54]}  Rxc4 {[%clk 0:01:20]} 19. bxc4 {[%clk 0:01:55]}  Nxe5 {[%clk 0:01:20]} 20. Rb1 {[%clk 0:01:35]}  Nd3+ {[%clk 0:01:10]} 21. Kd2 {[%clk 0:01:35]}  Nb4 {[%clk 0:01:10]} 22. Ke3 {[%clk 0:01:30]}  Kd7 {[%clk 0:01:10]} 23. Rhd1+ {[%clk 0:01:29]}  Kc7 {[%clk 0:01:10]} 24. Rd2 {[%clk 0:01:19]}  Re8 {[%clk 0:01:09]} 25. g4 {[%clk 0:01:12]}  f6 {[%clk 0:01:07]} 26. c5 {[%clk 0:01:01]}  Na6 {[%clk 0:01:05]} 27. Rc1 {[%clk 0:00:58]}  Re5 {[%clk 0:01:05]} 28. Nd4 {[%clk 0:00:57]}  Bf7 {[%clk 0:01:03]} 29. Nf5 {[%clk 0:00:45]}  Nxc5 {[%clk 0:00:57]} 30. Rcd1 {[%clk 0:00:37]}  Bb3 {[%clk 0:00:48]} 31. Rc1 {[%clk 0:00:32]}  g6 {[%clk 0:00:45]} 32. Nd4 {[%clk 0:00:31]}  Bxa4 {[%clk 0:00:44]} 33. Rxc5 {[%clk 0:00:31]}  Rxc5 {[%clk 0:00:44]} 34. Ne6+ {[%clk 0:00:32]}  Kb6 {[%clk 0:00:45]} 35. Nxc5 {[%clk 0:00:31]}  Kxc5 {[%clk 0:00:46]} 36. Kd3 {[%clk 0:00:31]}  b5 {[%clk 0:00:45]} 37. f4 {[%clk 0:00:28]}  Bb3 {[%clk 0:00:45]} 38. f5 {[%clk 0:00:19]}  gxf5 {[%clk 0:00:43]} 39. exf5 {[%clk 0:00:18]}  a4 {[%clk 0:00:44]} 40. h4 {[%clk 0:00:15]}  a3 {[%clk 0:00:43]} 41. Kc3 {[%clk 0:00:15]}  Bc4 {[%clk 0:00:40]} 42. g5 {[%clk 0:00:14]}  b4+ {[%clk 0:00:40]} 43. Kc2 {[%clk 0:00:14]}  fxg5 {[%clk 0:00:35]} 44. hxg5 {[%clk 0:00:14]}  b3+ {[%clk 0:00:35]} 45. Kb1 {[%clk 0:00:10]}  b2 {[%clk 0:00:33]} 46. g6 {[%clk 0:00:07]}  hxg6 {[%clk 0:00:32]} 47. fxg6 {[%clk 0:00:08]}  Be6 {[%clk 0:00:24]} 48. Rc2+ {[%clk 0:00:06]}  Kb4 {[%clk 0:00:21]} 49. g7 {[%clk 0:00:06]}  c5 {[%clk 0:00:19]} 50. Rd2 {[%clk 0:00:01]}  Bf5+ {[%clk 0:00:19]} 51. Rc2 {[%clk 0:00:02]}  Bh7 {[%clk 0:00:16]} 52. g8=Q {[%clk 0:00:02]}  Bxg8 {[%clk 0:00:16]} 53. Rc3 {[%clk 0:00:01]}  Bh7+ {[%clk 0:00:13]} 54. Ka2 {[%clk 0:00:01]}  b1=Q# {[%clk 0:00:13]} 0-1


[Site "https://www.chess.com"]

[Event "Titled Tuesday Blitz February 01 B 2022"]
[White "Quintiliano Pinto, Renato R."]
[Black "Loay, Sameer"]
[WhiteFideId "2117568"]
[BlackFideId "8104239"]
[WhiteElo "2439"]
[BlackElo "2040"]
[Result "0-1"]
[Round "11"]
[TimeControl "180+1"]
[Date "2022.02.01"]
[WhiteClock "0:00:12"]
[BlackClock "0:00:06"]

1. c4 {[%clk 0:02:55]}  Nf6 {[%clk 0:02:59]} 2. g3 {[%clk 0:02:55]}  g6 {[%clk 0:03:00]} 3. Bg2 {[%clk 0:02:55]}  Bg7 {[%clk 0:03:01]} 4. Nc3 {[%clk 0:02:56]}  O-O {[%clk 0:03:01]} 5. d3 {[%clk 0:02:55]}  d6 {[%clk 0:03:01]} 6. Nf3 {[%clk 0:02:54]}  e5 {[%clk 0:03:02]} 7. O-O {[%clk 0:02:54]}  c6 {[%clk 0:03:03]} 8. Bg5 {[%clk 0:02:51]}  h6 {[%clk 0:03:02]} 9. Bxf6 {[%clk 0:02:51]}  Qxf6 {[%clk 0:03:03]} 10. Rb1 {[%clk 0:02:49]}  Be6 {[%clk 0:03:04]} 11. Nd2 {[%clk 0:02:47]}  Nd7 {[%clk 0:03:04]} 12. b4 {[%clk 0:02:48]}  a6 {[%clk 0:03:04]} 13. a4 {[%clk 0:02:48]}  Rfc8 {[%clk 0:03:04]} 14. b5 {[%clk 0:02:48]}  axb5 {[%clk 0:03:05]} 15. axb5 {[%clk 0:02:49]}  Qd8 {[%clk 0:03:06]} 16. e3 {[%clk 0:02:20]}  Nc5 {[%clk 0:03:03]} 17. Nb3 {[%clk 0:02:16]}  Nxb3 {[%clk 0:02:59]} 18. Qxb3 {[%clk 0:02:16]}  Kh7 {[%clk 0:02:51]} 19. Ra1 {[%clk 0:02:14]}  Rxa1 {[%clk 0:02:44]} 20. Rxa1 {[%clk 0:02:14]}  e4 {[%clk 0:02:17]} 21. Rd1 {[%clk 0:02:03]}  exd3 {[%clk 0:02:11]} 22. bxc6 {[%clk 0:02:02]}  bxc6 {[%clk 0:02:05]} 23. Rxd3 {[%clk 0:02:00]}  Qa5 {[%clk 0:01:59]} 24. h4 {[%clk 0:01:42]}  Bf5 {[%clk 0:01:36]} 25. Be4 {[%clk 0:01:29]}  Be6 {[%clk 0:01:32]} 26. Kg2 {[%clk 0:01:24]}  Qc5 {[%clk 0:01:32]} 27. Na4 {[%clk 0:01:18]}  Qe5 {[%clk 0:01:24]} 28. Bf3 {[%clk 0:01:15]}  g5 {[%clk 0:00:51]} 29. hxg5 {[%clk 0:01:12]}  hxg5 {[%clk 0:00:52]} 30. Kg1 {[%clk 0:00:41]}  d5 {[%clk 0:00:25]} 31. cxd5 {[%clk 0:00:33]}  cxd5 {[%clk 0:00:26]} 32. Rd1 {[%clk 0:00:26]}  g4 {[%clk 0:00:23]} 33. Bxd5 {[%clk 0:00:22]}  Rb8 {[%clk 0:00:20]} 34. Qd3+ {[%clk 0:00:18]}  Bf5 {[%clk 0:00:20]} 35. e4 {[%clk 0:00:18]}  Bg6 {[%clk 0:00:21]} 36. Nc5 {[%clk 0:00:18]}  Qh5 {[%clk 0:00:16]} 37. Kg2 {[%clk 0:00:15]}  Qh3+ {[%clk 0:00:16]} 38. Kg1 {[%clk 0:00:16]}  Rb2 {[%clk 0:00:16]} 39. Rd2 {[%clk 0:00:14]}  Rb6 {[%clk 0:00:09]} 40. Qf1 {[%clk 0:00:14]}  Qh5 {[%clk 0:00:09]} 41. Nd3 {[%clk 0:00:15]}  Bf6 {[%clk 0:00:08]} 42. Nf4 {[%clk 0:00:15]}  Qg5 {[%clk 0:00:09]} 43. Nxg6 {[%clk 0:00:15]}  Qxd2 {[%clk 0:00:09]} 44. Nf4 {[%clk 0:00:15]}  Bg5 {[%clk 0:00:09]} 45. Nd3 {[%clk 0:00:12]}  Rh6 {[%clk 0:00:09]} 46. Ne5 {[%clk 0:00:12]}  Be3 {[%clk 0:00:07]} 47. Nxg4 {[%clk 0:00:12]}  Bxf2+ {[%clk 0:00:06]} 48. Qxf2 {[%clk 0:00:11]}  Qd1+ {[%clk 0:00:05]} 49. Kg2 {[%clk 0:00:12]}  Qh1# {[%clk 0:00:06]} 0-1


[Site "https://www.chess.com"]